Cogmind - Beta 17 @@@ ROGUE MODE // 2026.06.30 @ 17:05:02 Player: Duduxx Result: Destroyed by 9L-5P2(R) with Subdweller Beam Cannon Performance ------------- Evolutions (0) 0 Regions Visited (2) 400 Robots Destroyed (13) 65 Value Destroyed (184) 184 Prototype IDs (0) 0 Alien Tech Used (0) 0 Bonus (0) 0 TOTAL SCORE: 649 Bonus ------- None Cogmind --------- Core Integrity 0/250 Matter 280/300 Energy 218/250 System Corruption 0% Temperature Cool (9) Movement Rolling (95) Location -10/Subcaves Parts ------- > --- POWER (1) -------- Ion Engine > --- PROPULSION (2) --- Wheel Subdweller Monowheel > --- UTILITY (2) ------ Large Storage Unit > --- WEAPON (2) ------- (None) > --- INVENTORY (15) --- Wheel Wheel Wheel Compact Wheel Disposable Heat Sink Scrap Shield Fragment (49) Scrap Shield Fragment (45) Peak State ------------ > --- POWER ------------ Light Ion Engine > --- PROPULSION ------- Wheel Subdweller Monowheel > --- UTILITY ---------- Large Storage Unit Seismic Detector > --- WEAPON ----------- Medium Laser Small Laser > --- INVENTORY -------- Wheel Wheel Wheel Wheel Compact Wheel Disposable Heat Sink Scrap Shield Fragment Scrap Shield Fragment [Rating: 9] Favorites ----------- Power Ion Engine Engine Ion Engine Propulsion Light Treads Treads Light Treads Wheel Subdweller Monowheel Utility Large Storage Unit Device Seismic Detector Storage Large Storage Unit Weapon Small Laser Energy Gun Small Laser Build | -11 -10 -10 ------- Run | Yrd Mat Sub Slots Evolved . | . . . Power . | . . . Propulsion . | . . . Utility . | . . . Weapon . | . . . Parts Attached 15 | 8 1 6 Power 3 | 1 . 2 Engine 3 | 1 . 2 Core . | . . . Reactor . | . . . Propulsion 6 | 2 . 4 Treads 2 | 2 . . Leg . | . . . Wheel 4 | . . 4 Hover . | . . . Flight . | . . . Utility 3 | 2 1 . Device 1 | 1 . . Storage 2 | 1 1 . Processor . | . . . Hackware . | . . . Protection . | . . . Artifact . | . . . Weapon 3 | 3 . . Energy Gun 3 | 3 . . Energy Cannon . | . . . Ballistic Gun . | . . . Ballistic Cannon . | . . . Launcher . | . . . Special Weapon . | . . . Impact Weapon . | . . . Slashing Weapon . | . . . Piercing Weapon . | . . . Special Melee Weapon . | . . . Unidentified Prototypes . | . . . Parts Lost 7 | . . 7 Power 2 | . . 2 Propulsion 2 | . . 2 Utility 1 | . . 1 Weapon 2 | . . 2 Highest Loss Streak 5 | . . 5 To Critical Strikes . | . . . Average Backups 5 | 2 5 6 Power . | . 1 . Propulsion 4 | 2 4 4 Utility . | . . . Weapon . | . . . Tool/Special . | . . . Unused Backups 6 | . 1 5 Power . | . . . Propulsion 5 | . 1 4 Utility 1 | . . 1 Weapon . | . . . Tool/Special . | . . . Average Slot Usage (%) 91 | . 100 83 Engine 12 | . 14 11 Treads 17 | . 28 8 Wheel 9 | . . 18 Device 12 | . 14 10 Storage 14 | . 14 14 Energy Gun 23 | . 28 20 Peak Build Rating 9 | 7 7 9 Average Rating 6 | 5 7 7 On Entrance 4 | . 7 7 Avg Prop Armor Cover (%) . | . . . Naked Turns . | . . . Heaviest Build 29 | 14 29 29 Greatest Support 40 | 40 40 40 Greatest Overweight (x) 1 | . . 1 Average Overweight (x) . | . . . Largest Inventory Capacity 15 | 8 15 15 Average Capacity 13 | 7 14 15 Most Carried 8 | 6 6 8 Average Carried 6 | 2 5 7 Final Capacity 15 | 8 15 15 Final Carried 7 | 6 6 7 Class Distribution -------------------- 100% | Mutant Dominant Class ---------------- Mutant | -10/Materials Mutant | -10/Subcaves Resources | -11 -10 -10 ----------- Run | Yrd Mat Sub Matter Collected 315 | 280 10 25 Remotely . | . . . Salvage Created 252 | 79 102 71 Parts 27 | 11 11 5 Haulers Intercepted . | . . . Recyclers Shooed . | . . . Parts Field Recycled . | . . . Retrieved Matter . | . . . Parts Self-Destructed 7 | . . 7 Prevented . | . . . Parts Restored . | . . . Kills | -11 -10 -10 ------- Run | Yrd Mat Sub Combat Hostiles Destroyed 8 | . 6 2 Guns 8 | . 6 2 Classes Destroyed 4 | 1 2 1 Tunneler 4 | 4 . . Watcher 1 | . 1 . Swarmer 6 | . 6 . Subdweller 2 | . . 2 Best Kill Streak 4 | 4 3 1 Combat Bots Only 3 | . 3 1 Max Kills in Single Turn 1 | 1 1 1 Gunslinging . | . . . Exploded . | . . . Melee . | . . . Uniques/NPCs Destroyed . | . . . Combat | -11 -10 -10 -------- Run | Yrd Mat Sub Hostile Shots Fired 74 | . 36 38 Missed 21 | . 6 15 Hits 53 | . 30 23 Projectile 53 | . 30 23 Damage Taken 899 | . 333 566 Core 252 | . 114 138 Absorbed by Shields . | . . . Core Remaining (%) 100 | 100 . . Volleys Fired 42 | 6 19 17 Largest 2 | 2 2 2 Hottest 90 | 90 90 90 Shots Fired 81 | 12 37 32 Gun 81 | 12 37 32 Cannon . | . . . Launcher . | . . . Special . | . . . Kinetic . | . . . Thermal 81 | 12 37 32 Explosive . | . . . Electromagnetic . | . . . Robot Hit Streak 8 | 4 3 8 Robot Miss Streak 4 | 1 4 3 Penetration Max . | . . . Secondary Targets 1 | . 1 . Max Gunslinging Chain 1 | . 1 . Shots Hit Robots 46 | 7 13 26 Core Hits 21 | 4 8 9 Critical Kills . | . . . Critical Parts Destroyed . | . . . Critical Strikes 2 | . . 2 Burn 2 | . . 2 Melee Attacks . | . . . Impact . | . . . Slashing . | . . . Piercing . | . . . Sneak Attacks . | . . . Combat Hostiles . | . . . Follow-up Attacks . | . . . Damage Inflicted 546 | 81 158 307 Guns 546 | 81 158 307 Cannons . | . . . Explosions . | . . . Melee . | . . . Ramming . | . . . Kinetic . | . . . Thermal 546 | 81 158 307 Explosive . | . . . Electromagnetic . | . . . Impact . | . . . Slashing . | . . . Piercing . | . . . Highest Corruption . | . . . Average Corruption . | . . . Corruption Purged . | . . . Corruption Blocked . | . . . Overload Shots . | . . . Overflow Damage . | . . . Projectiles . | . . . Explosions . | . . . Melee . | . . . Knockbacks . | . . . Impact . | . . . Kinetic . | . . . Secondary . | . . . Self-Inflicted Damage . | . . . Shots . | . . . Rammed . | . . . Targets Rammed . | . . . Kicked . | . . . Crushed . | . . . Highest Temperature 300 | 60 300 . Average Temperature 84 | 22 102 . Received Heat Transfer 39 | . . 39 Siege Activations . | . . . Martial Activations . | . . . Shielding Activations . | . . . Robots Disrupted . | . . . Combat Hostiles . | . . . Robots Corrupted . | . . . Combat Hostiles . | . . . Parts Fried . | . . . Impact Corruptions . | . . . Robots Melted . | . . . Combat Hostiles . | . . . Parts Melted 4 | . 1 3 Heat Transferred 1623 | 211 434 978 Parts Sabotaged . | . . . Parts Stolen . | . . . Parts Stripped . | . . . Power Chain Reactions . | . . . Alert | -11 -10 -10 ------- Run | Yrd Mat Sub Maximum Alert Level . | . . . Low Security (%) 100 | 100 100 . Level 1 . | . . . Level 2 . | . . . Level 3 . | . . . Level 4 . | . . . Level 5 . | . . . High Security . | . . . Max Security . | . . . Peak Influence 67 | 10 67 . Initial . | . . . Average 20 | 1 28 . Influence Increases 167 | 20 147 . Destroy 0b10 Robot/C 120 | . 120 . Destroy 0b10 Robot/NC 25 | 20 5 . Destroy Leader 22 | . 22 . Influence Decreases 167 | 20 147 . Time Decay 167 | 20 147 . Squads Dispatched . | . . . Investigation . | . . . Extermination . | . . . Reinforcement . | . . . Assault . | . . . Garrison . | . . . Intercept . | . . . Searches Triggered . | . . . Construction Impeded . | . . . Haulers Reinforced . | . . . Active Scanning Responses . | . . . Cargo Convoy Interrupts . | . . . Stealth | -11 -10 -10 --------- Run | Yrd Mat Sub Distress Signals . | . . . Communications Jammed . | . . . Distress Signals . | . . . Times Spotted 16 | . 8 8 Peak Tracking Total 4 | . 4 3 Tactical Retreats 2 | . . 2 Traps | -11 -10 -10 ------- Run | Yrd Mat Sub Traps Triggered 5 | . 3 2 Indirectly . | . . . Trap Hack Attempts . | . . . Triggered . | . . . Disarmed . | . . . Reprogrammed . | . . . Reused . | . . . Traps Extracted . | . . . Installed . | . . . Triggered . | . . . Machines | -11 -10 -10 ---------- Run | Yrd Mat Sub Machines Disabled . | . . . Max in Single Turn . | . . . Machines Repaired . | . . . Machines Dismantled . | . . . Machines Sabotaged . | . . . Overloaded Fab Kills . | . . . Hacking | -11 -10 -10 --------- Run | Yrd Mat Sub Machines Accessed . | . . . Terminals . | . . . Fabricators . | . . . Repair Stations . | . . . Recycling Units . | . . . Scanalyzers . | . . . Garrison Access . | . . . Total Hacks . | . . . Successful . | . . . Failed . | . . . Catastrophic . | . . . Database Lockouts . | . . . Manual 2 | . 2 . Terminals . | . . . Fabricators . | . . . Repair Stations . | . . . Recycling Units . | . . . Scanalyzers . | . . . Garrison Access . | . . . Terminal Hacks . | . . . Fabricator Hacks . | . . . Repair Station Hacks . | . . . Recycling Unit Hacks . | . . . Scanalyzer . | . . . Garrison Access Hacks . | . . . Unauthorized Hacks . | . . . Terminals . | . . . Fabricators . | . . . Repair Stations . | . . . Recycling Units . | . . . Scanalyzers . | . . . Garrison Access . | . . . Data Cores Recovered . | . . . Used . | . . . Hacking Detections . | . . . Full Trace Events . | . . . Feedback Events . | . . . Feedback Blocked . | . . . Robot Schematics Acquired . | . . . Robots Built . | . . . Authchips . | . . . Time . | . . . Total Robot Build Rating . | . . . Part Schematics Acquired . | . . . Parts Built . | . . . Authchips . | . . . Time . | . . . Total Part Build Rating . | . . . Part Studies Acquired . | . . . Parts Repaired . | . . . Time . | . . . Parts Recycled . | . . . Recycled Matter . | . . . Retrieved Matter . | . . . Retrieved Components . | . . . Parts Scanalyzed . | . . . Part Schematics Acquired . | . . . Parts Damaged . | . . . Bothacking | -11 -10 -10 ------------ Run | Yrd Mat Sub Used RIF Installer . | . . . Robots Hacked . | . . . Non-combat . | . . . Combat . | . . . Robot Hacks Applied . | . . . Relay Couplers Released . | . . . Fabnet Peak Effective % . | . . . Robots Rewired . | . . . Allies Hacked . | . . . Hacks Repelled . | . . . Allies | -11 -10 -10 -------- Run | Yrd Mat Sub Total Allies . | . . . Largest Group . | . . . Highest-Rated Group . | . . . Highest-Rated Ally . | . . . Total Orders . | . . . Ally Attacks . | . . . Total Damage . | . . . Kills . | . . . Allies Corrupted . | . . . Allies Melted . | . . . Intel | -11 -10 -10 ------- Run | Yrd Mat Sub Active Infowar (turns) 717 | 26 395 296 Seismic 717 | 26 395 296 Robot Analysis Total . | . . . Derelict Logs Recovered . | . . . Drone Launches . | . . . Drone Recoveries . | . . . Exploration | -11 -10 -10 ------------- Run | Yrd Mat Sub Turns Passed 958 | 151 395 412 Spaces Moved 549 | 76 149 324 Core 6 | 6 . . Treads 264 | 70 149 45 Legs . | . . . Wheels 279 | . . 279 Hover . | . . . Flight . | . . . Fastest Speed 50 | 50 160 95 Average Speed 126 | 151 160 105 Slowest Speed 240 | 160 160 240 Overloaded Moves . | . . . Propulsion Burnouts . | . . . Robots Hopped . | . . . Potential Cave-ins . | . . . Cave-ins Triggered . | . . . Exploration Rate (%) 21 | 4 35 26 Regions Visited 2 Branch Regions 1 Pre-discovered Areas 1 | . . 1 Known Exits Taken . | . . . Unknown Exits Taken 2 | 1 1 . Scrap Searched . | . . . Spaces Dug . | . . . Terrain Destroyed . | . . . Melee . | . . . Projectile . | . . . AOE . | . . . Terrain Rammed . | . . . Walls Destroyed . | . . . Machines Disabled . | . . . Actions | -11 -10 -10 --------- Run | Yrd Mat Sub Total 731 | 97 269 365 Wait 98 | . 98 . Move 547 | 75 148 324 Hop . | . . . Pick Up 16 | 6 1 9 Fast Attach 10 | 8 . 2 Attach 3 | . . 3 Detach 2 | 1 . 1 Swap 2 | . 1 1 Drop 10 | 1 2 7 Fire 42 | 6 19 17 Melee . | . . . Ram . | . . . Kick . | . . . Crush . | . . . Escape Stasis . | . . . Rewire 1 | . . 1 Trap . | . . . Miscellaneous . | . . . Route ------- -11/Scrapyard -10/Materials (discovered 2 exits: [*Mat] / [*Sub]) -10/Subcaves History --------- Turn | Location | Event 12 | -11/Scrapyard | Discovered new exit (range 15) 152 | -11/Scrapyard | Entered Materials 313 | -10/Materials | Build established: Mutant 414 | -10/Materials | Discovered new exit (range 5) 475 | -10/Materials | Discovered new exit (range 5) 547 | -10/Materials | Entered Subcaves 548 | -10/Subcaves | Approached by a straggling Scientist 549 | -10/Subcaves | Ambushed by Subdwellers from Twisted Machinery 557 | -10/Subcaves | Core integrity fell below 50% 804 | -10/Subcaves | Learned location of Zion (-7) 804 | -10/Subcaves | Met a Zionite searching for "candidates" 832 | -10/Subcaves | A Subdweller sparked back to life 832 | -10/Subcaves | A Subdweller sparked back to life 832 | -10/Subcaves | A Subdweller sparked back to life 847 | -10/Subcaves | Core integrity fell below 20% 875 | -10/Subcaves | Lost 5 parts (1p1n1u2w) 959 | -10/Subcaves | Destroyed by 9L-5P2(R) with Subdweller Beam Cannon Last Messages --------------- 00829_ TO-CQV(R) is broken beyond repair. 00831_ Dropped Scrap Shield Fragment. 00831_ Acquired Scrap Shield Fragment. 00832_ 0K-0P9(R) creaks and sparks as it begins to move. 00832_ TO-CQV(R) creaks and sparks as it begins to move. 00832_ DC-D26(R) creaks and sparks as it begins to move. 00834_ Sml. Laser destroyed. 00835_ Med. Laser destroyed. 00836_ Wheel destroyed. 00843_ Seismic Detector destroyed. 00844_ Lgt. Ion Engine destroyed. 00938_ Subatomizers dissect the Wheel. 00939_ Acquired Ion Engine. 00948_ Dropped Com. Wheel. 00949_ Acquired Com. Wheel. 00950_ Dropped Wheel. 00959_ FR-SVG(R): "SUBMAD!" Map ----- +----------------------------------------------------+ | ??????????????????????#" ## #??## #????? | | ??????????????????????##### ?## #????? | | ??????????????????????????# ?# #????? | | ??????????????????????????# ?#### #????? | | ?????????????????????????## ##??## % ##???? | | ????????????????????????##" %#???### % #???? | | ???????????????" ??????# ##??### %#???? | | ??????????????? ??????# ####% ##???? | | ???????????????? ?????### ## % #????? | | ????????????????? ????# % #???? | | ?????????????????# ????## #???? | | ?????????????????# ???# ## ### ###???? | | ?????????????????# #??# ## ####?## ##?????? | | ???????????????### #### ## #?????####??????? | | ???????????????# # ## ##???????????????? | | ?????????????? % %% % % ##???????????????? | | ?????????????? % #???????????????? | | ??????????????????# ## ####???????????????? | | ??????????????????## ?# # ##??????????????????? | | ????????????????????#### ##% ##??##??????????????? | | ????????????????????# ## ###????????????? | | ????????????????????## = #????????????? | | ??????????? ????????## % #????????????? | | ????????????# R ##### % ##????????????? | | ????????????#R % #?????????????? | | ???????????# % @%#### ?????????? | | ????????? [ % # #???# ?????????? | | ?????????? % #### #???# ##?????????? | | ?????????? %%????##%=[##????######??????????? | | ??????????? ??????# !%#?? ?????????????????? | | ?????????? "##???????#! &##? ????????????????## | | ??????????? "?????????# %* # ???????????????# | | ????????????????????? = % ????????????????# | | ??????????????????""" % ?????????????###? | | ??????????????????" " # ?????????????## #? | | ????????????## "??#"" ##### ?????????????? ? | | ????????????# ""??# ##??## ?????????????? #? | | ?????????####"""??#% #???# ???????????????# ? | | ?????????# """#??# % #???# ??????????????## ## | | ??????????# " ##?#"" ##???# ##??????????#### # | | ??????????# """###""""##??# " ####???????# # | | ?????????##""" ## "" ####" # #????????# | | ?????##??#"" ## ## % ##????????# | | ????## ### ##= ### ### #????????# | | ????#""" #!% ## # #??????### | | ????# # ### # #?????## | | ????## # ## ## ####### | | ?????# ### ### " ##!## | | ?????#### ##?# #### """ %% ### | | ????????## #??# """"""""! ###?? | +----------------------------------------------------+ Best States ------------- Heat Dissipation 25 Energy Generation 10 Energy Capacity 250 Matter Stores 300 Matter Capacity 300 Sight Range 16 Terrain Scan Density 10 Evasion (%) 41 Recoil Reduction 2 Item Schematics ----------------- None Robot Schematics ------------------ None Fabricated ------------ Nothing Repaired ---------- Nothing Studied --------- None Alien Tech Used ----------------- None Achievements -------------- None Challenges ------------ None Game ------ Seed HypervelocityShockTelecube Manual? 0 Play Time 00:07:53 Cumulative 134.8 hours Start 2026.06.30 @ 16:57:34 End 2026.06.30 @ 17:05:02 Sessions 1 Manual Loads 0 Difficulty Rogue Special Mode None Game No. 254 Rogue 254 Adventurer 0 Explorer 0 Win Type - Total 0 Types 0/0/0/0/0/0/0/0/0/0 Lore% 37 Gallery% 46 Achievement% 28 Wizard Run 0 Options --------- Layout 1 ASCII 0 Keyboard 1 Movement Arrows Keybinds 0 Fullscreen 2 Font 24/Smallcaps Map View 50x35 Zoom Use 0% Tactical HUD 1 Map Filters NONE Filters NONE Steam 1 RUN: e3c6143c-8f5d-4bc6-af33-20a4c518a769